Cogmind - Beta 11 @@@ ROGUE MODE // 2022.03.25 @ 12:50:10 Player: TotallyRasta Result: Destroyed by X-67 Chaingunner with Minigun Performance ------------- Evolutions (3) 1500 Regions Visited (9) 1800 Robots Destroyed (66) 330 Value Destroyed (2163) 2163 Prototype IDs (1) 20 Alien Tech Used (0) 0 Bonus (897) 897 TOTAL SCORE: 6710 Bonus ------- High Alert Combat Kills 97 Entered DSFs 500 Aligned with FarCom 300 Cogmind --------- Core Integrity 0/700 Matter 249/300 Energy 55/100 System Corruption 1% Temperature Cool (0) Movement Treading (170) Location -7/DSF Parts ------- > --- POWER (2) -------- (None) > --- PROPULSION (3) --- Armored Treads > --- UTILITY (6) ------ Large Storage Unit > --- WEAPON (2) ------- (None) > --- INVENTORY (15) --- Large Storage Unit Pulse Rifle Particle Cannon Longsword +1 Peak State ------------ > --- POWER ------------ Deuterium Engine > --- PROPULSION ------- Wheel Wheel Wheel > --- UTILITY ---------- Improved Cooling System Large Storage Unit Improved Sensor Array Core Analyzer Heavy Armor Plating > --- WEAPON ----------- Light EM Pulse Cannon Heavy Particle Cannon > --- INVENTORY -------- Wheel Large Storage Unit Improved Sensor Array EM Pulse Gun Pulse Rifle Light EM Pulse Cannon Particle Cannon Particle Cannon Ion Cannon Gauss Rifle Gauss Rifle Shock Bomb Launcher Longsword +1 [Rating: 32] Favorites ----------- Power Reinforced Ion Engine Engine Reinforced Ion Engine Power Core Nuclear Core Propulsion Wheel Treads Light Treads Wheel Wheel Hover Unit Airjet Utility Large Storage Unit Device Improved Sensor Array Storage Large Storage Unit Processor Core Analyzer Protection Heavy Armor Plating Weapon Light EM Pulse Cannon Energy Gun Medium Laser Energy Cannon Light EM Pulse Cannon Ballistic Gun Heavy Assault Rifle Launcher Shock Bomb Launcher Slashing Weapon Longsword +1 Build | -11 -10 -10 -9 -9 -9 -8 -8 -7 -7 ------- Run | Scr Mat Min Mat Min Exi Min Mat Fac DSF Slots Evolved 6 | . . . 2 . . . 2 2 . Power 1 | . . . . . . . . 1 . Propulsion 1 | . . . 1 . . . . . . Utility 4 | . . . 1 . . . 2 1 . Weapon . | . . . . . . . . . . Parts Attached 62 | 6 4 . 16 1 3 . 16 2 14 Power 5 | 1 . . 1 1 . . 1 . 1 Engine 4 | 1 . . 1 1 . . 1 . . Core 1 | . . . . . . . . . 1 Reactor . | . . . . . . . . . . Propulsion 21 | 2 1 . 7 . . . 6 1 4 Treads 4 | . 1 . 2 . . . . . 1 Leg . | . . . . . . . . . . Wheel 15 | 2 . . 5 . . . 6 1 1 Hover 2 | . . . . . . . . . 2 Flight . | . . . . . . . . . . Utility 19 | 1 3 . 6 . . . 6 1 2 Device 7 | . . . 3 . . . 3 . 1 Storage 3 | 1 2 . . . . . . . . Processor 1 | . . . . . . . . 1 . Hackware . | . . . . . . . . . . Protection 8 | . 1 . 3 . . . 3 . 1 Artifact . | . . . . . . . . . . Weapon 17 | 2 . . 2 . 3 . 3 . 7 Energy Gun 2 | 1 . . . . 1 . . . . Energy Cannon 6 | . . . . . 1 . 2 . 3 Ballistic Gun 6 | 1 . . 2 . . . . . 3 Ballistic Cannon . | . . . . . . . . . . Launcher 1 | . . . . . . . . . 1 Special Weapon . | . . . . . . . . . . Impact Weapon . | . . . . . . . . . . Slashing Weapon 2 | . . . . . 1 . 1 . . Piercing Weapon . | . . . . . . . . . . Special Melee Weapon . | . . . . . . . . . . Unidentified Prototypes 1 | . . . . . 1 . . . . Corrupted Parts 1 | . . . . . . . . . 1 System Corruption 1 | . . . . . . . . . 1 Parts Lost 30 | . . . 3 . . . 6 . 21 Power 1 | . . . . . . . . . 1 Propulsion 11 | . . . 2 . . . 3 . 6 Utility 10 | . . . 1 . . . 3 . 6 Weapon 8 | . . . . . . . . . 8 Highest Loss Streak 16 | . . . 1 . . . 1 . 16 To Critical Strikes . | . . . . . . . . . . Average Slot Usage (%) 92 | . 97 100 98 100 99 100 88 84 65 Engine 10 | . 14 14 11 11 11 11 8 7 5 Treads 8 | . 4 14 11 11 11 11 8 . . Wheel 19 | . 23 14 20 22 22 22 17 23 15 Device 14 | . . . 14 22 22 22 17 15 12 Storage 10 | . 14 14 11 11 11 11 9 7 7 Protection 7 | . 11 14 7 . . . 9 7 4 Energy Gun 5 | . 14 14 11 11 5 . . . . Energy Cannon 8 | . . . . . 4 11 17 15 9 Ballistic Gun 6 | . 14 14 11 11 11 11 . . 1 Naked Turns . | . . . . . . . . . . Heaviest Build 57 | 11 27 27 40 37 39 39 57 57 57 Greatest Support 30 | 26 26 10 28 28 28 28 28 30 30 Greatest Overweight (x) 6 | . 2 2 3 1 1 1 3 1 6 Average Overweight (x) 1 | . . 2 1 1 1 1 1 1 1 Largest Inventory Capacity 15 | 8 15 15 15 15 15 15 15 15 15 Average Capacity 14 | 7 10 15 15 15 15 15 15 15 15 Most Carried 15 | 4 8 8 15 15 15 14 15 14 11 Average Carried 12 | 1 5 8 12 15 14 14 14 11 9 Final Capacity 15 | 8 15 15 15 15 15 15 15 15 15 Final Carried 15 | 4 8 8 15 15 14 14 15 11 4 Class Distribution -------------------- 30% | Skirmisher 30% | Mutant 24% | Scavenger-Mutant 12% | Scavenger-Skirmisher Dominant Class ---------------- Mutant | -10/Materials Mutant | -10/Mines Scavenger-Mutant | -9/Materials Scavenger-Mutant | -9/Mines Scavenger-Mutant | -9/Exiles Scavenger-Skirmisher | -8/Mines Skirmisher | -8/Materials Skirmisher | -7/Factory Scavenger-Skirmisher | -7/DSF Resources | -11 -10 -10 -9 -9 -9 -8 -8 -7 -7 ----------- Run | Scr Mat Min Mat Min Exi Min Mat Fac DSF Matter Collected 843 | 203 90 . 290 22 . . 185 . 53 Remotely . | . . . . . . . . . . Salvage Created 2672 | . 170 . 613 99 . . 1407 . 383 Parts 169 | . 12 . 49 5 . . 82 . 21 Haulers Intercepted 1 | . . . . . . . 1 . . Recyclers Shooed . | . . . . . . . . . . Parts Field Recycled . | . . . . . . . . . . Retrieved Matter . | . . . . . . . . . . Parts Self-Destructed . | . . . . . . . . . . Prevented . | . . . . . . . . . . Kills | -11 -10 -10 -9 -9 -9 -8 -8 -7 -7 ------- Run | Scr Mat Min Mat Min Exi Min Mat Fac DSF Combat Hostiles Destroyed 57 | . 6 . 17 2 . . 25 . 7 Melee 4 | . . . . . . . 4 . . Guns 25 | . 6 . 16 2 . . . . 1 Cannons 22 | . . . . . . . 19 . 3 AOE 3 | . . . . . . . . . 3 Classes Destroyed 13 | . 2 . 3 1 . . 6 . 1 Worker 4 | . . . 2 . . . 2 . . Builder 2 | . . . . . . . 2 . . Hauler 1 | . . . . . . . 1 . . Recycler 1 | . . . 1 . . . . . . Watcher 1 | . . . . . . . 1 . . Swarmer 16 | . 3 . 9 . . . 4 . . Grunt 22 | . 3 . 3 1 . . 11 . 4 Brawler 2 | . . . . 1 . . 1 . . Duelist 1 | . . . . . . . 1 . . Sentry 8 | . . . 5 . . . 3 . . Specialist 6 | . . . . . . . 4 . 2 Hunter 1 | . . . . . . . 1 . . Heavy 1 | . . . . . . . . . 1 Best Kill Streak 9 | . 3 . 9 2 . . 6 . 5 Combat Bots Only 6 | . 3 . 6 2 . . 6 . 5 Max Kills in Single Turn 2 | . 1 . 1 1 . . 1 . 2 Gunslinging . | . . . . . . . . . . Exploded 2 | . . . . . . . . . 2 Melee 1 | . . . . . . . 1 . . Uniques/NPCs Destroyed . | . . . . . . . . . . Combat | -11 -10 -10 -9 -9 -9 -8 -8 -7 -7 -------- Run | Scr Mat Min Mat Min Exi Min Mat Fac DSF Damage Taken 4825 | . 165 . 822 55 . . 1613 . 2170 Core 1008 | . 49 . 62 21 . . 164 . 712 Absorbed by Shields 39 | . . . . . . . . . 39 Redirected to Shielding 33 | . 21 . 12 . . . . . . Core Remaining (%) 82 | 100 . 80 . . . 79 70 . . Volleys Fired 146 | . 13 . 55 4 . . 55 . 19 Largest 2 | . 2 . 2 2 . . 2 . 2 Hottest 131 | . 70 . 73 73 . . 131 . 131 Shots Fired 280 | . 26 . 110 8 . . 107 . 29 Gun 150 | . 26 . 110 8 . . . . 6 Cannon 128 | . . . . . . . 107 . 21 Launcher 2 | . . . . . . . . . 2 Special . | . . . . . . . . . . Kinetic 78 | . 13 . 55 4 . . . . 6 Thermal 141 | . 13 . 55 4 . . 53 . 16 Explosive . | . . . . . . . . . . Electromagnetic 61 | . . . . . . . 54 . 7 Robot Hit Streak 18 | . 14 . 18 3 . . 16 . 15 Robot Miss Streak 6 | . 3 . 6 1 . . 3 . 3 Penetration Max . | . . . . . . . . . . Secondary Targets 3 | . . . 2 1 . . . . . Max Gunslinging Chain 1 | . . . 1 1 . . . . . Shots Hit Robots 203 | . 19 . 71 5 . . 86 . 22 Core Hits 101 | . 12 . 27 4 . . 42 . 16 Critical Kills 1 | . . . . . . . 1 . . Critical Parts Destroyed . | . . . . . . . . . . Critical Strikes 6 | . 1 . 4 . . . 1 . . Burn 5 | . 1 . 4 . . . . . . Meltdown 1 | . . . . . . . 1 . . Melee Attacks 8 | . . . . . . . 8 . . Impact . | . . . . . . . . . . Slashing 8 | . . . . . . . 8 . . Piercing . | . . . . . . . . . . Sneak Attacks . | . . . . . . . . . . Combat Hostiles . | . . . . . . . . . . Follow-up Attacks . | . . . . . . . . . . Damage Inflicted 4472 | . 203 . 887 73 . . 2322 . 987 Guns 1246 | . 203 . 887 73 . . . . 83 Cannons 2274 | . . . . . . . 1900 . 374 Explosions 589 | . . . . . . . 59 . 530 Melee 363 | . . . . . . . 363 . . Ramming . | . . . . . . . . . . Kinetic 647 | . 66 . 450 48 . . . . 83 Thermal 2094 | . 137 . 437 25 . . 884 . 611 Explosive . | . . . . . . . . . . Electromagnetic 1368 | . . . . . . . 1075 . 293 Impact . | . . . . . . . . . . Slashing 363 | . . . . . . . 363 . . Piercing . | . . . . . . . . . . Highest Corruption 1 | . . . . . . . . . 1 Average Corruption 1 | . . . . . . . . . 1 Corruption Purged . | . . . . . . . . . . Corruption Blocked . | . . . . . . . . . . Overload Shots . | . . . . . . . . . . Overflow Damage 5 | . . . . . . . 5 . . Projectiles . | . . . . . . . . . . Explosions . | . . . . . . . . . . Melee 5 | . . . . . . . 5 . . Knockbacks . | . . . . . . . . . . Impact . | . . . . . . . . . . Kinetic . | . . . . . . . . . . Secondary . | . . . . . . . . . . Self-Inflicted Damage 97 | . . . . . . . 37 . 60 Shots 3 | . . . . . . . 1 . 2 Rammed . | . . . . . . . . . . Targets Rammed . | . . . . . . . . . . Kicked . | . . . . . . . . . . Crushed . | . . . . . . . . . . Highest Temperature 394 | . 200 . 81 . . . 394 . . Average Temperature 93 | . 77 . 25 . . . 114 . . Received Heat Transfer 1308 | . 96 . 177 18 . . 603 . 414 Effects 1 | . . . . . . . 1 . . Interference 1 | . . . . . . . 1 . . Siege Activations . | . . . . . . . . . . Robots Corrupted 1 | . . . . . . . 1 . . Combat Hostiles 1 | . . . . . . . 1 . . Parts Fried 3 | . . . . . . . 3 . . Impact Corruptions . | . . . . . . . . . . Robots Melted 2 | . . . 1 . . . 1 . . Combat Hostiles 2 | . . . 1 . . . 1 . . Parts Melted 8 | . 4 . 4 . . . . . . Heat Transferred 4261 | . 481 . 1591 74 . . 1271 . 844 Parts Sabotaged . | . . . . . . . . . . Parts Stolen . | . . . . . . . . . . Parts Stripped . | . . . . . . . . . . Power Chain Reactions 3 | . . . . . . . 1 . 2 Missiles Intercepted . | . . . . . . . . . . Alert | -11 -10 -10 -9 -9 -9 -8 -8 -7 -7 ------- Run | Scr Mat Min Mat Min Exi Min Mat Fac DSF Peak Influence 582 | . 220 85 417 173 . . 582 250 209 Initial 250 | . . 85 33 123 . . . 250 175 Average 209 | . 137 85 261 164 . . 234 250 181 Maximum Alert Level 2 | . 1 . 2 . . . 2 1 1 Low Security (%) 52 | 100 62 100 26 100 . 100 52 . 81 Level 1 30 | . 37 . 56 . . . 17 100 18 Level 2 17 | . . . 16 . . . 29 . . Level 3 . | . . . . . . . . . . Level 4 . | . . . . . . . . . . Level 5 . | . . . . . . . . . . High Security . | . . . . . . . . . . Max Security . | . . . . . . . . . . Squads Dispatched 11 | . 1 . 3 . . . 4 . 3 Investigation 2 | . 1 . 1 . . . . . . Extermination . | . . . . . . . . . . Reinforcement 8 | . . . 2 . . . 3 . 3 Assault 1 | . . . . . . . 1 . . Garrison . | . . . . . . . . . . Intercept . | . . . . . . . . . . Searches Triggered . | . . . . . . . . . . Construction Impeded . | . . . . . . . . . . Haulers Reinforced . | . . . . . . . . . . Active Scanning Responses . | . . . . . . . . . . Cargo Convoy Interrupts . | . . . . . . . . . . Stealth | -11 -10 -10 -9 -9 -9 -8 -8 -7 -7 --------- Run | Scr Mat Min Mat Min Exi Min Mat Fac DSF Distress Signals 10 | . 1 . 1 . . . 8 . . Communications Jammed . | . . . . . . . . . . Distress Signals . | . . . . . . . . . . Times Spotted 110 | . 12 . 29 2 . . 52 . 15 Peak Tracking Total 9 | . 5 . 8 2 . . 9 . 6 Tactical Retreats 13 | . 2 . 4 . . . 5 . 2 Traps | -11 -10 -10 -9 -9 -9 -8 -8 -7 -7 ------- Run | Scr Mat Min Mat Min Exi Min Mat Fac DSF Traps Triggered 4 | . 1 . 1 . . . . . 2 Indirectly 1 | . . . . . . . . . 1 Trap Hack Attempts . | . . . . . . . . . . Triggered . | . . . . . . . . . . Disarmed . | . . . . . . . . . . Reprogrammed . | . . . . . . . . . . Reused . | . . . . . . . . . . Traps Extracted . | . . . . . . . . . . Installed . | . . . . . . . . . . Triggered . | . . . . . . . . . . Machines | -11 -10 -10 -9 -9 -9 -8 -8 -7 -7 ---------- Run | Scr Mat Min Mat Min Exi Min Mat Fac DSF Machines Disabled 4 | . . . . . . . 4 . . Max in Single Turn 1 | . . . . . . . 1 . . Machines Sabotaged . | . . . . . . . . . . Garrisons Compromised . | . . . . . . . . . . Overloaded Fab Kills . | . . . . . . . . . . Hacking | -11 -10 -10 -9 -9 -9 -8 -8 -7 -7 --------- Run | Scr Mat Min Mat Min Exi Min Mat Fac DSF Machines Accessed 11 | . 3 . 1 . . . 6 1 . Terminals 11 | . 3 . 1 . . . 6 1 . Fabricators . | . . . . . . . . . . Repair Stations . | . . . . . . . . . . Recycling Units . | . . . . . . . . . . Scanalyzers . | . . . . . . . . . . Garrison Access . | . . . . . . . . . . Total Hacks 22 | . 5 . 2 . . . 13 2 . Successful 8 | . 3 . 1 . . . 3 1 . Failed 14 | . 2 . 1 . . . 10 1 . Catastrophic 4 | . 1 . . . . . 3 . . Database Lockouts . | . . . . . . . . . . Manual 17 | . 2 . 2 . 1 . 12 . . Terminals 22 | . 5 . 2 . . . 13 2 . Fabricators . | . . . . . . . . . . Repair Stations . | . . . . . . . . . . Recycling Units . | . . . . . . . . . . Scanalyzers . | . . . . . . . . . . Garrison Access . | . . . . . . . . . . Terminal Hacks 7 | . 3 . 1 . . . 2 1 . Record 1 | . 1 . . . . . . . . Open DSF 1 | . . . . . . . . 1 . Branch Access Points 3 | . 1 . 1 . . . 1 . . Locate Traps 1 | . 1 . . . . . . . . Recall Investigation 1 | . . . . . . . 1 . . Fabricator Hacks . | . . . . . . . . . . Repair Station Hacks . | . . . . . . . . . . Recycling Unit Hacks . | . . . . . . . . . . Scanalyzer . | . . . . . . . . . . Garrison Access Hacks . | . . . . . . . . . . Unauthorized Hacks 1 | . . . . . . . 1 . . Terminals 1 | . . . . . . . 1 . . Assimilate 1 | . . . . . . . 1 . . Fabricators . | . . . . . . . . . . Repair Stations . | . . . . . . . . . . Recycling Units . | . . . . . . . . . . Scanalyzers . | . . . . . . . . . . Garrison Access . | . . . . . . . . . . Data Cores Recovered . | . . . . . . . . . . Used . | . . . . . . . . . . Hacking Detections 11 | . 3 . 1 . . . 6 1 . Full Trace Events . | . . . . . . . . . . Feedback Events . | . . . . . . . . . . Feedback Blocked . | . . . . . . . . . . Robot Schematics Acquired . | . . . . . . . . . . Robots Built . | . . . . . . . . . . Authchips . | . . . . . . . . . . Time . | . . . . . . . . . . Total Robot Build Rating . | . . . . . . . . . . Part Schematics Acquired . | . . . . . . . . . . Parts Built . | . . . . . . . . . . Authchips . | . . . . . . . . . . Time . | . . . . . . . . . . Total Part Build Rating . | . . . . . . . . . . Parts Repaired . | . . . . . . . . . . Time . | . . . . . . . . . . Parts Recycled . | . . . . . . . . . . Recycled Matter . | . . . . . . . . . . Retrieved Matter . | . . . . . . . . . . Retrieved Components . | . . . . . . . . . . Parts Scanalyzed . | . . . . . . . . . . Part Schematics Acquired . | . . . . . . . . . . Parts Damaged . | . . . . . . . . . . Bothacking | -11 -10 -10 -9 -9 -9 -8 -8 -7 -7 ------------ Run | Scr Mat Min Mat Min Exi Min Mat Fac DSF Used RIF Installer . | . . . . . . . . . . Robots Hacked . | . . . . . . . . . . Non-combat . | . . . . . . . . . . Combat . | . . . . . . . . . . Robot Hacks Applied . | . . . . . . . . . . Relay Couplers Released . | . . . . . . . . . . Fabnet Peak Effective % . | . . . . . . . . . . Robots Rewired . | . . . . . . . . . . Allies Hacked . | . . . . . . . . . . Hacks Repelled . | . . . . . . . . . . Allies | -11 -10 -10 -9 -9 -9 -8 -8 -7 -7 -------- Run | Scr Mat Min Mat Min Exi Min Mat Fac DSF Total Allies 1 | . . . . . . . 1 . . Largest Group 1 | . . . . . . . 1 . . Highest-Rated Group 10 | . . . . . . . 10 . . Highest-Rated Ally 10 | . . . . . . . 10 . . Total Orders . | . . . . . . . . . . Ally Attacks . | . . . . . . . . . . Total Damage . | . . . . . . . . . . Kills . | . . . . . . . . . . Allies Corrupted . | . . . . . . . . . . Allies Melted . | . . . . . . . . . . Intel | -11 -10 -10 -9 -9 -9 -8 -8 -7 -7 ------- Run | Scr Mat Min Mat Min Exi Min Mat Fac DSF Robot Analysis Total . | . . . . . . . . . . Derelict Logs Recovered 1 | . . 1 . . . . . . . Drone Launches . | . . . . . . . . . . Drone Recoveries . | . . . . . . . . . . Exploration | -11 -10 -10 -9 -9 -9 -8 -8 -7 -7 ------------- Run | Scr Mat Min Mat Min Exi Min Mat Fac DSF Turns Passed 3279 | 53 376 78 865 33 269 103 1276 11 215 Spaces Moved 1982 | 46 317 71 483 18 239 74 648 9 77 Core 6 | 3 . . . . . . . . 3 Treads . | . . . . . . . . . . Legs . | . . . . . . . . . . Wheels 1972 | 43 317 71 483 18 239 74 648 9 70 Hover 4 | . . . . . . . . . 4 Flight . | . . . . . . . . . . Fastest Speed 50 | 50 90 110 100 110 110 110 110 95 95 Average Speed 108 | 87 94 110 104 110 110 110 118 95 114 Slowest Speed 350 | 90 110 110 135 110 110 110 145 95 350 Overloaded Moves . | . . . . . . . . . . Propulsion Burnouts . | . . . . . . . . . . Robots Hopped . | . . . . . . . . . . Cave-ins Triggered . | . . . . . . . . . . Exploration Rate (%) 35 | 3 59 25 40 7 63 25 52 . 44 Regions Visited 9 Branch Regions 4 Pre-discovered Areas . | . . . . . . . . . . Known Exits Taken 3 | . 1 . 1 . . . . 1 . Unknown Exits Taken 6 | 1 . 1 . 1 1 1 1 . . Scrap Searched . | . . . . . . . . . . Spaces Dug 1 | . . . . . . . . . 1 Terrain Destroyed 25 | . . . . . . . 20 . 5 Melee . | . . . . . . . . . . Projectile 12 | . . . . . . . 11 . 1 AOE 13 | . . . . . . . 9 . 4 Terrain Rammed . | . . . . . . . . . . Walls Destroyed . | . . . . . . . . . . Machines Disabled . | . . . . . . . . . . Actions | -11 -10 -10 -9 -9 -9 -8 -8 -7 -7 --------- Run | Scr Mat Min Mat Min Exi Min Mat Fac DSF Total 2834 | 55 370 71 742 23 246 95 1047 12 173 Wait 547 | . 27 1 159 . . 22 293 . 45 Move 1973 | 45 316 70 482 17 238 73 647 8 77 Hop . | . . . . . . . . . . Pick Up 35 | 4 5 . 11 . 1 . 14 . . Fast Attach 23 | 6 2 . 6 . 1 . 2 . 6 Attach 21 | . 1 . 2 . 2 . 6 2 8 Detach 9 | . 2 . 3 . 1 . 2 . 1 Swap 18 | . 1 . 8 1 . . 8 . . Drop 37 | . 3 . 16 1 3 . 12 2 . Fire 146 | . 13 . 55 4 . . 55 . 19 Melee 8 | . . . . . . . 8 . . Ram . | . . . . . . . . . . Kick . | . . . . . . . . . . Crush . | . . . . . . . . . . Escape Stasis 5 | . . . . . . . . . 5 Rewire 12 | . . . . . . . . . 12 Trap . | . . . . . . . . . . Miscellaneous . | . . . . . . . . . . Route ------- -11/Scrapyard -10/Materials (discovered 3 exits: *Mat / *Min x2) -10/Mines -9/Materials -9/Mines -9/Exiles -8/Mines -8/Materials -7/Factory (discovered 2 exits: Sto / DSF) -7/DSF History --------- Turn | Location | Event 21 | -11/Scrapyard | Discovered new exit (range 16) 54 | -11/Scrapyard | Entered Materials 81 | -10/Materials | Identified exit to Mines 252 | -10/Materials | Discovered new exit (range 16) 325 | -10/Materials | Build established: Mutant 430 | -10/Materials | Entered Mines 503 | -10/Mines | Discovered new exit (range 5) 508 | -10/Mines | Entered Materials 508 | -9/Materials | Evolved 2 slots: Propulsion x1, Utility x1 751 | -9/Materials | Identified exit to Mines 1373 | -9/Materials | Entered Mines 1401 | -9/Mines | Deemed a non-threat by the Exiles lab entrance 1401 | -9/Mines | Discovered new exit (range 5) 1402 | -9/Mines | Met a Derelict bent on vengeance 1406 | -9/Mines | Entered Exiles 1434 | -9/Exiles | Met 8R-AWN 1452 | -9/Exiles | Met EX-HEX 1481 | -9/Exiles | Met EX-BIN 1487 | -9/Exiles | Build established: Scavenger-Mutant 1499 | -9/Exiles | Aligned with FarCom system 1500 | -9/Exiles | Given EX-Vault access code 1527 | -9/Exiles | Opened EX-Vault 1534 | -9/Exiles | Found Prototype Slashing Weapon 1543 | -9/Exiles | Identified Longsword +1 1560 | -9/Exiles | Warned to stay clear of 0b10 Research branches 1619 | -9/Exiles | Met EX-DEC 1665 | -9/Exiles | Discovered new exit (range 10) 1675 | -9/Exiles | Left Exiles lab with Longsword +1 1675 | -9/Exiles | Entered Mines 1768 | -8/Mines | Discovered new exit (range 10) 1778 | -8/Mines | Entered Materials 1778 | -8/Materials | Evolved 2 slots: Utility x2 2773 | -8/Materials | Build established: Skirmisher 2978 | -8/Materials | First assault squad dispatched 3048 | -8/Materials | Discovered new exit (range 6) 3054 | -8/Materials | Entered Factory 3054 | -7/Factory | Evolved 2 slots: Power x1, Utility x1 3055 | -7/Factory | Identified exit to Storage 3064 | -7/Factory | Identified exit to DSF 3065 | -7/Factory | Entered DSF 3127 | -7/DSF | Additional patrols routed to DSF 3201 | -7/DSF | Lost 5 parts (1n2u2w) 3265 | -7/DSF | Core integrity fell below 50% 3274 | -7/DSF | Core integrity fell below 20% 3280 | -7/DSF | Destroyed by X-67 Chaingunner with Minigun Last Messages --------------- 03238_ Slug penetrates H-61 Shepherd. 03238_ H-61 Shepherd destroyed. 03241_ G-47 Trooper destroyed. 03242_ Deuterium Engine destroyed. 03245_ Imp. Cooling System destroyed. 03246_ Gauss Rifle destroyed. 03248_ Ion Cannon destroyed. 03249_ Chain reaction triggered in Lgt. Nuclear Core. 03249_ G-47 Trooper destroyed. 03254_ G-50 Soldier IFF system glitched. 03256_ ALERT: Security rotation in progress. 03258_ Acquired Airjet. 03260_ Critical hit (Burn: +37). 03262_ Wheel destroyed. 03262_ Lgt. EM Pulse Cannon destroyed. 03262_ Particle Cannon destroyed. 03265_ Acquired Airjet. 03267_ Airjet destroyed. 03273_ Acquired 5 matter. 03280_ Acquired Arm. Treads. Map ----- +----------------------------------------------------+ | ?????????????????????????????????? ?????????? | | ?????????????????????????????????# #????????? | | ????????????????????????????????? =????????? | | ????????????????????????????????? =????????? | | ?????????????????????????????????# #????????? | | ?????????????????????????????????= =????????? | | ?????????????????????????????????= =????????? | | ?????????????????????????????????= =????????? | | ??????????????????#?????????###??# ###??????? | | ?????????????????## ????#!??# ?# !!#??????? | | ????????????????## ? ##!!!# ## !!#??????? | | ???????????????? !!#??????? | | ????????????????? ???? !!#??????? | | ????????????????? ???????? !!#??????? | | ?????????????????? ???????????# !!#??????? | | ??????????????????# ???????????# !!#??????? | | ????????????????### #????????### ###??????? | | ????????????????#!! ]????????# #???????? | | ????????????????#!! ]????????# #???????? | | ????????????????#!! ]????????# #???????? | | ????????????????### ###??????### ##???????? | | ????????????????#== =#??????# !#???????? | | ????????????????#== = #####??# !#???????? | | ????????????##??#== ==;#;%###### ##???????? | | ?????????#??#//?###H [##xx!!#!!### ###??????? | | ????????## #///### x#! @%%#!!## ""###????? | | ?????? *[%==g[%=== """""????? | | ?????? !%!=%%%%[!%! ""##"????? | | ?????????#//# #[[!!!!!*!!!#!!##"""""#??????? | | ????????????###?#[[^^!!!#########"""""#??????? | | ????????????????###### ##???????##"####??????? | | ?????????????????????# #?????????#"#?????????? | | ?????????????????????##??????????#""?????????? | | ?????????????????????????????????????????????? | | ?????????????????????????????????????????????? | | ?????????????????????????????????????????????? | | ?????????????????????????????????????????????? | | ?????????????????????????????????????????????? | | | | | | | | | | | | | | | | | | | | | | | | | +----------------------------------------------------+ Best States ------------- Heat Dissipation 61 Energy Generation 23 Energy Capacity 415 Matter Stores 300 Matter Capacity 300 Sight Range 16 Robot Scan Range 15 Terrain Scan Density 10 Armor Coverage 600 Propulsion Shielding 33 Evasion (%) 42 Core Analysis 6 Recoil Reduction 2 Item Schematics ----------------- None Robot Schematics ------------------ None Fabricated ------------ Nothing Alien Tech Used ----------------- None Achievements -------------- None Challenges ------------ None Game ------ Seed ScatterAdvancedThruster Manual? 0 Play Time 00:44:25 Cumulative 106.4 hours Start 2022.03.25 @ 12:01:33 End 2022.03.25 @ 12:50:10 Sessions 1 Manual Loads 0 Difficulty Rogue Special Mode None Game No. 127 Rogue 127 Adventurer 0 Explorer 0 Win Type - Total 0 Types 0/0/0/0/0/0/0/0/0 Lore% 51 Gallery% 54 Achievement% 44 Wizard Run 0 Options --------- ASCII 0 Keyboard 1 Movement Numpad Keybinds 0 Fullscreen 1 Font 18/SmallcapsGlow Map View 76x50 Tactical HUD 1 Map Filters NONE Filters NONE Steam 1 RUN: 9082ade1-1d6d-4fd0-8fd8-817eca3ae590